bitfinex/quotes_ETHUSD_20220201
["timestamp","ask_amount","ask_price","bid_price","bid_amount"]
[1643731162291,21.58249118,2769.5,2769.0,0.9032]
[1643731162997,21.58249118,2769.5,2769.1,0.3]
[1643731163294,21.22,2769.5,2769.2,1.80633]
[1643731163497,21.22,2770.0,2769.2,1.80633]
[1643731163698,21.22,2770.0,2769.2,2.10633]
[1643731163902,11.40645,2770.7,2769.2,2.10633]
[1643731164096,2.38960146,2770.6,2769.3,0.72572378]
[1643731164297,0.38737232,2769.7,2769.3,0.72572378]
[1643731164497,12.23442021,2770.7,2769.3,0.72572378]
[1643731164498,2.20405522,2770.4,2769.3,0.72572378]
[1643731164698,1.23492431,2770.3,2769.3,0.72572378]
[1643731164902,12.23442021,2770.7,2769.5,1.8058157]
[1643731164903,1.23492431,2770.2,2769.5,1.8058157]
[1643731165130,3.8781,2770.8,2769.6,2.73029898]
[1643731165332,1.32706784,2770.7,2769.6,2.73029898]
[1643731165533,1.32706784,2770.7,2769.6,3.09125619]
[1643731165734,1.32706784,2770.7,2769.7,1.80567]
[1643731165930,5.38705757,2770.9,2769.8,0.90283]
[1643731165931,1.32706784,2770.6,2769.8,0.90283]
[1643731166131,21.22,2770.6,2769.8,3.91135]
[1643731166733,21.22,2770.6,2769.8,4.8141959]
[1643731166935,21.22,2770.4,2769.8,4.8141959]
[1643731167132,0.40248566,2770.3,2770.1,1.80572]
[1643731167534,21.22,2770.4,2770.1,1.80572]
[1643731167837,0.52,2771.0,2770.1,2.7171524]
[1643731168037,1.32685163,2770.9,2770.1,4.5229324]
[1643731168234,21.22,2770.8,2770.1,4.5143052]
[1643731168433,1.32685163,2770.7,2770.1,4.5143052]
[1643731168636,21.22,2770.5,2770.1,4.5143052]
[1643731168898,21.22,2770.5,2770.4,0.90277]
[1643731169503,21.22,2771.1,2770.4,1.20277]
[1643731169708,21.22,2771.1,2770.5,1.8052]
[1643731169902,0.6825491,2771.9,2770.5,1.82285598]
[1643731170102,0.01237177,2772.0,2770.5,2.12285598]
[1643731170103,1.32780988,2771.8,2770.5,2.12285598]
[1643731170303,2.0,2772.0,2770.9,0.90246]
[1643731170304,1.32780988,2771.7,2770.9,0.90246]
[1643731170507,2.0,2772.0,2770.9,0.90246]
[1643731170508,21.22,2771.3,2770.9,0.90246]
[1643731170703,1.32789499,2771.2,2770.9,2.7074187]
[1643731170903,21.22,2771.1,2770.9,2.7074187]
[1643731171102,0.6825491,2771.9,2770.9,2.7074187]
[1643731171303,0.01273794,2772.0,2770.9,2.7074187]
[1643731171304,1.32805646,2771.8,2771.2,1.80487]
[1643731171504,2.0,2772.0,2771.2,1.80487]
[1643731171505,1.32805646,2771.7,2771.2,1.80487]
[1643731171709,22.54805646,2771.6,2771.2,1.80487]
[1643731171903,1.32805646,2771.5,2771.2,1.80487]
[1643731172107,0.38765382,2771.3,2771.2,1.80487]
[1643731172304,22.54805646,2771.3,2771.2,1.80487]
[1643731174037,1.32805646,2771.3,2771.2,1.80487]
[1643731174435,22.54805646,2771.3,2771.2,1.80487]
[1643731177385,2.2025491,2771.9,2771.2,1.80487]
[1643731177586,1.0,2771.9,2771.3,0.9023966]
[1643731177783,0.1804,2771.8,2771.4,2.70712]
[1643731177984,21.22,2771.8,2771.4,2.70712]
[1643731178185,0.1804,2771.7,2771.4,2.70712]
[1643731178585,0.62630486,2771.7,2771.4,2.70712]
[1643731178785,21.22,2771.6,2771.5,0.90238]
[1643731178984,21.4004,2771.6,2771.5,1.80479]
[1643731179389,0.1804,2771.6,2771.5,1.80479]
[1643731179596,0.1804,2771.6,2771.5,2.10479]
[1643731180051,0.42836697,2772.0,2771.6,1.80453]
[1643731180252,0.42836697,2772.0,2771.6,2.10453]
[1643731180453,0.5,2772.1,2771.6,2.10453]
[1643731180653,0.5,2772.1,2771.7,0.85226]
[1643731180853,0.5,2772.1,2771.8,0.90226]
[1643731181055,21.22,2772.0,2771.8,0.90226]
[1643731182055,21.22,2772.0,2771.6,4.81136]
[1643731182854,21.22,2772.0,2771.8,0.90226]
[1643731183655,21.22,2772.0,2771.7,0.18089447]
[1643731183870,0.5,2772.1,2771.8,0.3]
[1643731184073,0.5,2772.1,2771.9,0.9022506]
[1643731184275,0.5,2772.1,2771.9,1.2022506]
[1643731184481,0.5,2772.1,2771.9,3.93118471]
[1643731184678,0.5,2772.1,2771.9,4.23118471]
[1643731184883,1.5,2772.6,2771.9,4.23118471]
[1643731185076,1.5,2772.6,2772.1,1.8042883]
[1643731185277,21.22,2772.5,2772.2,0.3]
[1643731185479,3.98441383,2772.4,2772.2,1.20221]
[1643731185681,22.73999999,2772.3,2772.0,1.36591014]
[1643731185881,22.73999999,2772.3,2771.1,3.60922]
[1643731185882,21.22,2772.0,2771.1,3.60922]
[1643731186080,21.22,2772.0,2770.9,3.60932]
[1643731186081,0.01249364,2771.6,2771.5,1.8051]
[1643731186280,0.01249364,2771.6,2770.9,3.60932]
[1643731186281,21.22,2771.5,2770.9,3.60932]
[1643731186480,1.70600594,2771.4,2770.9,3.60932]
[1643731186683,21.22,2771.3,2771.0,1.90272]
[1643731186880,0.52,2771.2,2771.0,1.90272]
[1643731187078,1.52,2771.2,2771.0,3.70809]
[1643731187542,21.22,2771.1,2771.0,3.70809]
[1643731187739,21.22,2771.1,2771.0,4.00809]
[1643731191475,21.22,2771.1,2771.0,3.70809]
[1643731191677,0.52,2771.2,2771.0,4.00809]
[1643731191880,21.22,2771.5,2771.0,4.30809]
[1643731191881,21.74,2771.5,2771.0,4.30809]
[1643731192079,21.22,2771.5,2771.1,3.30743]
[1643731193077,21.22,2771.5,2771.3,0.90747421]
[1643731193277,21.22,2771.5,2771.3,1.2024]
[1643731193477,0.10875683,2772.1,2771.3,1.2024]
[1643731193679,1.60282849,2772.1,2771.5,2.7071]
[1643731193880,22.32875683,2772.1,2771.5,3.0071]
[1643731194081,21.32875683,2772.1,2771.5,3.0071]
[1643731194283,21.22,2772.1,2771.6,0.9023337]
[1643731194481,21.22,2772.1,2771.7,1.80461]
[1643731194681,21.22,2772.1,2771.8,0.3]
[1643731194881,21.22,2772.1,2771.8,2.4047]
[1643731195129,21.22,2772.1,2771.8,2.1047]
[1643731195332,1.48492803,2772.0,2771.8,2.1047]
[1643731195528,21.22,2771.9,2771.8,1.8047]
[1643731195728,23.62507599,2771.9,2771.6,1.80461]
[1643731195929,23.62507599,2771.9,2770.7,3.85995]
[1643731195930,0.99999999,2771.7,2770.7,3.85995]
[1643731196131,6.66257565,2771.2,2770.7,0.25]
[1643731196337,26.33960523,2771.1,2769.6,0.1804]
[1643731196531,0.01225874,2770.8,2769.6,0.4304]
[1643731196728,0.01225874,2770.8,2769.8,1.80593]
[1643731196729,21.22,2769.9,2769.8,1.80593]
[1643731196931,21.22,2769.9,2769.7,1.80597]
[1643731197935,21.22,2769.9,2769.5,1.0]
[1643731198131,0.52,2770.0,2769.5,1.0]
[1643731198332,0.52,2770.4,2769.5,1.0]
[1643731198531,0.52,2770.7,2769.5,1.91058172]
[1643731198825,1.24871384,2770.6,2769.5,1.9029709]
[1643731199011,1.24871384,2770.6,2769.9,0.33404418]
[1643731199212,4.65692,2771.2,2770.1,1.80544]
[1643731199512,1.29271648,2771.1,2770.1,1.80544]
[1643731199711,21.22,2771.0,2770.4,0.90273]
[1643731199912,1.29271648,2770.9,2770.4,0.90273]
[1643731200121,22.51312582,2770.8,2770.4,0.7665462]
[1643731200519,1.29312582,2770.7,2770.4,0.7665462]
[1643731200911,21.22,2770.6,2770.4,0.7665462]
[1643731201114,21.22,2770.6,2770.4,1.6692614]
[1643731202411,21.22,2770.6,2770.5,0.1582687]
[1643731202828,21.22,2770.6,2770.5,0.4582687]
[1643731204634,21.22,2770.6,2770.5,0.1582687]
[1643731206593,22.51861667,2770.6,2770.2,2.91148489]
[1643731206790,1.29861667,2770.5,2770.2,2.91148489]
[1643731206988,1.29861667,2770.4,2770.2,2.91148489]
[1643731207290,21.22,2770.6,2770.3,0.3]
[1643731207491,21.2179348,2770.6,2770.3,0.3]
[1643731207689,21.2179348,2770.6,2770.3,2.1052402]
[1643731207891,1.26925112,2770.5,2770.3,2.1052402]
[1643731208691,21.66434855,2770.6,2770.3,2.1052402]
[1643731208891,1.26968534,2770.5,2770.3,2.1052402]
[1643731209290,1.03275824,2770.4,2770.3,2.1052402]
[1643731209491,2.06551648,2770.4,2770.3,2.1052402]
[1643731209892,3.33575846,2770.4,2770.3,2.1052402]
[1643731210742,3.33575846,2770.4,2770.3,1.1052402]
[1643731211140,19.88594568,2770.7,2770.3,1.1052402]
[1643731211344,19.88594568,2770.7,2770.4,1.13514859]
[1643731211544,0.67723853,2771.5,2770.5,0.23245859]
[1643731211743,0.67723853,2771.5,2770.5,2.03752859]
[1643731211942,1.9542553,2771.5,2770.7,0.90257]
[1643731212142,1.9542553,2771.5,2771.1,0.72259045]
[1643731212346,21.22,2771.3,2770.9,0.90256]
[1643731212543,1.27701677,2771.2,2770.9,0.90256]
[1643731212742,22.49701677,2771.2,2770.9,0.90256]
[1643731212942,1.27701677,2771.1,2770.9,0.90256]
[1643731213144,1.27701677,2771.1,2771.0,0.3]
[1643731213991,1.9542553,2771.7,2771.0,0.3]
[1643731214196,6.322554,2771.5,2771.0,0.3]
[1643731214393,1.27701677,2771.4,2771.0,0.3]
[1643731214793,1.27701677,2771.4,2771.0,1.0963508]
[1643731215194,1.27701677,2771.4,2771.0,1.9988187]
[1643731215794,1.27701677,2771.4,2771.0,4.7057987]
[1643731216195,1.27701677,2771.4,2771.2,1.8046]
[1643731216595,12.645108,2771.5,2771.3,0.23878712]
[1643731216796,12.645108,2771.5,2771.2,3.0068974]
[1643731216994,12.612608,2771.5,2771.2,3.0068974]
[1643731217525,12.612608,2771.5,2771.3,2.70667]
[1643731217930,1.786368,2771.5,2771.3,2.72429338]
[1643731218429,21.22,2772.1,2771.3,2.72429338]
[1643731218636,21.22,2772.1,2771.6,0.90217]
[1643731218830,21.22,2772.1,2771.7,1.80985284]
[1643731219030,21.22,2772.1,2771.7,1.80433]
[1643731219230,0.67723853,2772.4,2771.8,0.3]
[1643731219431,0.67723853,2772.5,2771.8,2.10428]
[1643731219631,0.4377579,2772.2,2771.8,2.10428]
[1643731220032,0.4377579,2772.2,2771.8,3.0064328]
[1643731220447,2.1771288,2772.5,2771.8,3.0064328]
[1643731220633,2.1771288,2772.5,2771.9,1.80428]
[1643731220634,21.22,2772.4,2771.9,1.80428]
[1643731220833,21.22,2772.4,2771.9,2.10428]
[1643731221303,0.5,2772.6,2771.9,2.10428]
[1643731221694,0.5,2772.6,2772.2,0.90197]
[1643731221895,0.5,2772.6,2772.2,1.50197]
[1643731222294,0.5,2772.6,2772.3,2.71779989]
[1643731222599,1.17723853,2773.1,2772.3,2.70578]
[1643731222797,0.5,2773.1,2772.5,0.01274404]
[1643731222995,0.5,2773.1,2772.7,1.80324]
[1643731222996,0.19928928,2773.1,2772.7,1.80324]
[1643731223195,0.67723853,2773.5,2773.2,0.82538674]
[1643731223395,0.55,2773.6,2772.8,2.0]
[1643731223595,1.35447706,2774.4,2772.9,6.65]
[1643731223804,2.45601529,2774.8,2774.1,0.01256269]
[1643731224010,0.5,2775.2,2774.2,4.97851997]
[1643731224198,0.5,2775.2,2774.9,0.44057994]
[1643731224401,1.35779,2775.7,2774.8,1.0]
[1643731224796,1.35779,2775.7,2774.7,0.74563274]
[1643731225039,1.35779,2775.7,2775.0,0.9008219]
[1643731225040,21.22,2775.6,2775.0,0.9008219]
[1643731225335,1.35779,2775.7,2775.1,0.3]
[1643731225936,0.5,2775.7,2775.1,0.3]
[1643731226138,0.5,2775.7,2775.1,2.10211]
[1643731226342,0.5,2775.7,2775.1,3.00317]
[1643731226540,0.5,2775.7,2775.6,0.41887039]
[1643731226739,0.5,2775.7,2775.6,0.3]
[1643731226938,0.5,2775.7,2775.1,1.38147458]
[1643731227339,0.5,2775.7,2775.2,2.70279]
[1643731227540,0.5,2775.7,2775.2,3.60372]
[1643731227739,0.4,2775.7,2775.3,0.3]
[1643731229992,0.4,2775.7,2775.3,0.304]
[1643731230395,0.4,2775.7,2775.3,0.004]
[1643731230693,0.4,2775.7,2775.4,0.91285993]
[1643731230892,0.4,2775.7,2775.4,1.6988635]
[1643731231091,0.4,2775.7,2775.4,0.9008698]
[1643731231598,0.4,2775.7,2775.5,0.3]
[1643731232092,0.4,2775.7,2775.3,0.004]
[1643731232093,21.62,2775.7,2775.3,0.004]
[1643731232295,0.4,2775.7,2775.3,0.004]
[1643731232932,0.35,2775.7,2775.3,0.004]
[1643731233537,0.35,2775.7,2775.3,0.32147032]
[1643731233740,0.35,2775.7,2775.4,0.90085]
[1643731234641,0.35,2775.7,2775.3,0.004]
[1643731234840,0.35,2775.7,2775.3,0.002]
[1643731235439,0.35,2775.7,2775.4,0.85071166]
[1643731235839,0.35,2775.7,2775.4,0.3]
[1643731236039,0.35,2775.7,2775.4,0.6]
[1643731236290,0.35,2775.7,2775.5,0.90087]
[1643731236891,0.35,2775.7,2775.6,0.35503424]
[1643731237089,0.5,2776.3,2775.6,0.35503424]
[1643731237292,0.5,2776.3,2775.6,0.65503424]
[1643731237590,0.5,2776.3,2775.9,0.71471914]
[1643731237789,0.5,2776.3,2775.9,1.02180498]
[1643731238290,0.5,2776.3,2775.9,0.3]
[1643731238490,0.5,2776.3,2775.9,1.20063]
[1643731238789,0.5,2776.3,2775.8,1.80131]
[1643731240341,0.51355089,2776.3,2775.8,1.80131]
[1643731240741,0.51355089,2776.3,2775.6,1.8013825]
[1643731240937,0.51355089,2776.3,2775.7,0.3]
[1643731241140,0.5,2776.3,2775.8,0.00972533]
[1643731241340,21.72,2776.3,2775.8,0.00972533]
[1643731241544,21.72949597,2776.3,2775.4,1.20088]
[1643731241743,22.16249597,2776.3,2775.4,0.6]
[1643731242142,22.153,2776.3,2775.4,0.6]
[1643731243345,22.16086363,2776.3,2775.4,0.6]
[1643731243547,22.153,2776.3,2775.4,0.6]
[1643731243781,0.42764814,2776.0,2775.4,0.6]
[1643731243979,21.22,2776.0,2775.4,0.6]
[1643731244182,21.22,2776.0,2775.4,1.20086]
[1643731245481,21.22,2776.0,2775.5,1.0]
[1643731245783,21.22,2776.0,2775.5,1.30587122]
[1643731245985,21.72,2776.3,2775.5,1.3]
[1643731246184,21.72,2776.3,2775.6,1.37237]
[1643731246388,0.5,2776.3,2775.7,0.9007632]
[1643731246586,0.5,2776.3,2775.8,0.30751346]
[1643731246786,0.5,2776.3,2775.8,1.50077]
[1643731246988,21.72,2776.3,2775.8,1.50077]
[1643731247192,21.72754825,2776.3,2775.8,1.50077]
[1643731247850,21.72,2776.3,2775.8,1.50077]
[1643731248050,21.72467063,2776.3,2775.8,1.50077]
[1643731248252,22.14727802,2776.3,2775.8,1.50077]
[1643731248450,0.92727802,2776.3,2775.8,1.50077]
[1643731248652,22.14260739,2776.3,2775.8,0.90077]
[1643731248853,22.14260739,2776.3,2775.5,1.0]
[1643731248854,0.01222231,2776.0,2775.5,1.0]
[1643731249858,22.14260739,2776.3,2775.5,1.0]
[1643731250054,22.14260739,2776.3,2775.5,1.3]
[1643731250255,22.14260739,2776.3,2775.5,1.6]
[1643731251059,2.15048137,2776.2,2775.5,1.6]
[1643731251285,21.22,2776.1,2775.5,1.6]
[1643731251490,21.22,2776.0,2775.5,1.6]
[1643731251697,0.42869692,2775.6,2775.5,1.6]
[1643731251894,21.22,2776.0,2775.5,1.6]
[1643731253094,21.66059647,2776.0,2775.5,1.6]
[1643731253896,21.17,2776.0,2775.5,1.6]
[1643731254097,0.5,2776.3,2775.6,0.91692005]
[1643731254297,0.5,2776.3,2775.7,0.3]
[1643731254895,0.5,2776.3,2776.1,0.73164088]
[1643731255342,0.5,2776.3,2776.1,0.6]
[1643731255745,0.5,2776.3,2776.1,0.3]
[1643731256145,0.5,2776.3,2776.0,0.6]
[1643731256642,0.5,2776.3,2776.1,0.752352]
[1643731257042,0.4,2776.3,2776.1,1.052352]
[1643731259483,0.35,2776.3,2776.1,1.052352]
[1643731260290,0.35,2776.3,2776.2,0.3]
[1643731260886,0.35,2776.3,2776.0,0.6]
[1643731261488,23.06533,2776.4,2776.3,0.65]
[1643731262289,23.06533,2776.4,2776.3,0.95]
[1643731262742,23.06533,2776.4,2776.3,0.65]
[1643731264443,23.86111153,2776.4,2775.2,1.80148]
[1643731264646,23.86111153,2776.4,2775.0,2.95225]
[1643731264647,3.1343288,2776.3,2775.0,2.95225]
[1643731264845,22.9520434,2776.2,2775.0,0.25]
[1643731265045,21.22,2776.0,2775.0,0.25]
[1643731265247,21.22,2775.8,2775.0,0.25]
[1643731265449,21.22,2775.6,2775.1,0.1801]
[1643731265646,6.65,2775.5,2775.1,0.1801]
[1643731266046,21.35394662,2775.4,2774.9,0.1801]
[1643731266496,21.35394662,2775.4,2774.6,0.1801]
[1643731267600,0.96338226,2775.3,2774.7,0.5374296]
[1643731267796,21.22,2775.2,2774.7,0.5374296]
[1643731268001,0.96338226,2775.1,2774.7,0.5374296]
[1643731268197,20.72,2775.2,2774.7,0.5374296]
[1643731268396,0.96336262,2775.1,2774.7,0.5374296]
[1643731268799,20.72,2775.2,2774.7,0.8374296]
[1643731268999,20.72,2775.2,2774.8,0.5374296]
[1643731269199,20.72,2775.2,2775.0,3.5]
[1643731269401,0.99393084,2775.1,2775.0,3.5]
[1643731269606,0.99393084,2775.1,2775.0,3.6801]
[1643731269799,0.99393084,2775.1,2775.0,3.9801]
[1643731270435,0.99393084,2775.1,2775.0,4.2801]
[1643731270640,20.72,2775.2,2775.0,4.82275042]
[1643731270841,20.72,2775.2,2775.1,0.1801]
[1643731271038,21.67868389,2775.2,2775.1,0.1801]
[1643731271744,21.67868389,2775.2,2775.1,0.4801]
[1643731271941,21.67868389,2775.2,2775.1,0.3]
[1643731272342,21.67868389,2775.2,2774.7,0.4801]
[1643731272543,21.88606294,2775.9,2774.8,0.5427812]
[1643731272744,0.88832151,2776.1,2774.8,1.7438212]
[1643731272745,21.22,2775.7,2774.8,1.7438212]
[1643731272943,0.95925442,2775.6,2774.9,0.5427812]
[1643731273443,0.95925442,2775.6,2775.2,0.33528009]
[1643731273644,25.05891038,2776.3,2775.5,0.77238687]
[1643731273885,0.95537754,2776.2,2775.6,0.5427812]
[1643731274987,0.95537754,2776.2,2775.6,1.4435012]
[1643731275290,0.95537754,2776.2,2775.7,0.8427812]
[1643731275487,0.95537754,2776.2,2775.7,0.3]
[1643731275692,0.95537754,2776.1,2775.7,0.3]
[1643731275890,0.95537754,2776.0,2775.5,1.37238687]
[1643731276091,0.95537754,2775.9,2775.6,3.5]
[1643731276291,0.95537754,2775.8,2775.6,3.5]
[1643731276491,0.95537754,2775.7,2775.6,3.5]
[1643731276690,1.62144048,2776.3,2775.6,3.5]
[1643731276890,1.62144048,2776.3,2775.5,2.27316687]
[1643731277090,1.62144048,2776.3,2775.6,0.50696074]
[1643731277091,1.28522396,2776.3,2775.6,0.50696074]
[1643731277292,0.96586388,2776.2,2775.5,3.17397627]
[1643731277539,0.01048634,2776.2,2775.5,3.17397627]
[1643731277732,3.2647634,2776.3,2775.5,3.17397627]
[1643731277733,0.95537754,2776.1,2775.5,3.17397627]
[1643731278037,0.85542842,2776.0,2775.5,3.17397627]
[1643731278245,0.66606294,2776.3,2775.5,3.17397627]
[1643731278440,0.66606294,2776.3,2775.3,1.8016188]
[1643731278645,0.66606294,2776.3,2775.0,2.24425753]
[1643731278646,0.66606294,2776.0,2775.4,3.5]
[1643731278839,21.22,2776.1,2775.4,3.5]
[1643731278840,0.66606294,2775.9,2775.4,3.5]
[1643731279042,1.32132151,2776.2,2775.1,1.8018576]
[1643731279043,0.40210056,2776.2,2775.1,1.8018576]
[1643731279445,1.07730608,2776.2,2775.2,0.70343613]
[1643731279641,1.07730608,2776.2,2775.2,4.20343613]
[1643731279642,21.22,2776.1,2775.2,4.20343613]
[1643731279841,2.39078258,2776.2,2775.2,4.20343613]
[1643731279842,21.22,2775.9,2775.2,2.79656387]
[1643731280042,22.5334765,2775.8,2775.2,2.79656387]
[1643731280242,0.07677849,2775.5,2775.0,0.4301]
[1643731280441,0.07677849,2775.5,2775.0,0.1801]
[1643731280646,0.07677849,2775.5,2775.0,3.6801]
[1643731280847,0.66606294,2775.9,2775.0,4.53807094]
[1643731280848,21.22,2775.6,2775.0,4.53807094]
[1643731281052,0.66606294,2775.9,2775.0,4.53807094]
[1643731281053,0.433,2775.9,2775.0,4.53807094]
[1643731281305,0.88832151,2776.3,2775.1,0.90091]
[1643731281306,21.22,2776.3,2775.1,0.90091]
[1643731281907,1.31192232,2776.2,2775.2,0.90086]
[1643731282107,21.22,2776.1,2775.1,0.90091]
[1643731282306,0.66606294,2776.3,2775.1,0.90091]
[1643731282506,1.97797433,2776.3,2775.1,0.90091]
[1643731282705,1.97797433,2776.3,2775.2,3.5]
[1643731283105,21.22,2776.2,2775.2,3.5]
[1643731283308,1.31191139,2776.1,2775.2,3.5]
[1643731283613,0.66606294,2775.8,2775.2,3.5]
[1643731283807,0.66606294,2775.8,2775.0,0.1801]
[1643731284007,0.66606294,2775.8,2775.0,3.6801]
[1643731284208,0.66606294,2775.9,2775.0,3.6801]
[1643731284407,0.66606294,2775.9,2775.1,1.90555989]
[1643731284610,0.43291102,2775.8,2775.1,1.90555989]
[1643731284808,1.97797433,2776.1,2775.1,1.90555989]
[1643731285046,1.97797433,2776.1,2775.1,2.83315989]
[1643731285246,0.66606294,2776.3,2775.3,0.3]
[1643731285646,0.66606294,2776.3,2775.8,0.88281156]
[1643731285847,23.20278158,2776.3,2775.3,0.3]
[1643731286049,1.31191139,2776.2,2775.3,0.3]
[1643731286447,1.32508062,2776.2,2775.3,0.3]
[1643731286647,1.32508062,2776.2,2775.3,3.8]
[1643731286847,1.32508062,2776.2,2775.4,0.93704438]
[1643731287049,21.22,2776.3,2775.9,0.71184982]
[1643731287251,21.22,2776.3,2775.9,1.01184982]
[1643731287449,21.22,2776.3,2775.9,0.3]
[1643731288451,21.22,2776.3,2776.0,0.81553141]
[1643731288909,1.84533,2776.4,2775.9,0.3]
[1643731289900,1.84533,2776.4,2775.6,1.74349586]
[1643731290101,1.84533,2776.4,2775.6,5.24349586]
[1643731290305,1.84533,2776.4,2775.6,7.41407423]
[1643731290707,1.84533,2776.4,2775.6,5.24349586]
[1643731291107,1.84533,2776.4,2775.8,0.37571228]
[1643731291306,1.84533,2776.4,2775.6,5.24349586]
[1643731292310,1.84533,2776.4,2775.8,0.91674895]
[1643731292556,1.84533,2776.4,2776.1,0.71235314]
[1643731293158,1.84533,2776.4,2776.1,1.01235314]
[1643731293755,1.84533,2776.4,2776.0,0.900577]
[1643731294161,1.84533,2776.4,2776.1,5.50425497]
[1643731294162,0.63945143,2776.4,2776.1,5.50425497]
[1643731294358,0.63945143,2776.4,2776.1,4.40474497]
[1643731294558,0.63945143,2776.4,2776.1,4.40049]
[1643731294859,0.5,2776.8,2776.1,4.40049]
[1643731295059,0.5,2776.8,2776.3,0.87041754]
[1643731295260,0.5,2776.8,2776.4,1.8007865]
[1643731296495,0.5,2776.8,2776.4,4.06783926]
[1643731296699,0.5,2776.8,2776.4,0.9003865]
[1643731296894,0.5,2776.8,2776.5,0.90043]
[1643731297902,0.5,2776.8,2776.3,3.5]
[1643731297903,21.22,2776.7,2776.3,3.5]
[1643731298100,0.5,2776.8,2776.5,3.5]
[1643731298101,1.01662985,2776.6,2776.5,3.5]
[1643731298402,0.5,2776.8,2776.5,3.5]
[1643731298596,1.01654874,2776.7,2776.3,0.90053]
[1643731299201,1.01654874,2776.7,2776.4,0.3]
[1643731299794,0.5,2776.8,2776.4,0.3]
[1643731300036,0.5,2776.8,2776.4,1.47312732]
[1643731300239,0.5,2776.8,2776.4,1.05241474]
[1643731300439,0.50567955,2776.8,2776.4,0.3]
[1643731301039,0.50567955,2776.8,2776.5,1.80104]
[1643731301240,0.5,2776.8,2776.5,1.80104]
[1643731301745,0.5,2776.8,2776.5,2.10104]
[1643731301746,1.0381903,2776.7,2776.5,2.10104]
[1643731301941,1.0381903,2776.7,2776.5,1.80104]
[1643731302140,1.0381903,2776.7,2776.5,2.10104]
[1643731303142,22.2581903,2776.7,2776.5,2.10104]
[1643731303343,1.0381903,2776.6,2776.5,0.3]
[1643731303792,1.0381903,2776.6,2776.3,0.90053]
[1643731304305,1.0381903,2776.5,2776.3,0.90053]
[1643731304501,1.0381903,2776.4,2776.0,3.60233]
[1643731304702,0.5,2776.8,2776.1,3.5]
[1643731304703,21.08,2776.3,2776.1,3.5]
[1643731304904,1.03805239,2776.2,2776.1,3.5]
[1643731305199,1.03805239,2776.2,2775.8,0.90084]
[1643731305398,21.599,2776.6,2775.8,0.90084]
[1643731305600,0.01220393,2776.2,2775.9,1.0721]
[1643731305804,21.08,2776.0,2775.9,1.0721]
[1643731306000,0.519,2776.3,2775.9,1.0721]
[1643731306201,1.05760978,2776.2,2775.9,1.0721]
[1643731306601,22.13760978,2776.2,2775.9,1.0721]
[1643731306803,1.05760978,2776.1,2775.9,1.0721]
[1643731307401,0.519,2776.3,2775.9,1.0721]
[1643731307639,1.05846177,2776.2,2775.9,1.0721]
[1643731307840,21.599,2776.6,2776.0,0.3]
[1643731308041,0.38973594,2776.4,2776.0,0.3]
[1643731308239,1.05854038,2776.3,2776.0,0.3]
[1643731308453,1.05854038,2776.3,2776.0,1.20081]
[1643731308639,22.13854038,2776.3,2776.0,1.20081]
[1643731308844,1.05854038,2776.2,2776.0,0.90081]
[1643731309048,21.08,2776.1,2776.0,0.90081]
[1643731309249,1.05854038,2776.1,2776.0,0.90081]
[1643731309452,22.13854038,2776.1,2776.0,0.90081]
[1643731309846,22.13854038,2776.1,2775.8,1.80159]
[1643731310047,0.38973594,2776.4,2775.8,1.80159]
[1643731310048,21.08,2775.9,2775.8,1.80159]
[1643731310247,22.65754038,2775.9,2775.6,1.80153]
[1643731310448,21.08,2775.7,2775.6,1.80153]
[1643731310649,22.13854038,2775.7,2775.5,1.80195]
[1643731310848,21.08,2775.7,2775.5,2.87418]
[1643731311293,21.08,2775.7,2775.6,0.85182]
[1643731311495,0.519,2775.9,2775.6,1.15182]
[1643731311697,1.07134663,2775.8,2775.6,1.15182]
[1643731311898,4.3213,2776.8,2775.8,1.80152]
[1643731312103,0.5,2776.8,2776.5,0.88926208]
[1643731312300,0.5,2776.8,2776.5,0.3]
[1643731312498,0.5,2776.8,2775.8,1.80152]
[1643731312699,0.5,2776.8,2776.5,0.90062]
[1643731313300,0.51097515,2776.8,2776.5,1.20062]
[1643731313500,0.5,2776.8,2776.5,0.90062]
[1643731313702,0.5,2776.8,2776.5,2.10129]
[1643731314099,0.5,2776.8,2776.5,0.48027226]
[1643731314499,0.51501304,2776.8,2776.5,0.48027226]
[1643731314703,21.59501304,2776.8,2776.5,0.48027226]
[1643731314899,21.58,2776.8,2776.5,0.48027226]
[1643731315361,0.5,2776.8,2776.5,0.48027226]
[1643731315762,0.5,2776.8,2776.5,1.20774268]
[1643731315968,0.5,2776.8,2776.5,0.48027226]
[1643731316462,0.90063373,2776.8,2776.5,0.48027226]
[1643731316664,21.08,2776.7,2776.5,0.48027226]
[1643731317461,0.5,2776.8,2776.5,0.48027226]
[1643731317661,1.16606294,2776.8,2776.5,0.78027226]
[1643731317862,1.16606294,2776.8,2776.5,0.48027226]
[1643731318064,1.16606294,2776.8,2776.5,0.78027226]
[1643731318267,0.5,2776.8,2776.5,0.78027226]
[1643731318572,0.5,2776.8,2776.5,1.68094226]
[1643731318802,0.5,2776.8,2776.5,1.38094226]
[1643731319002,0.5,2776.8,2776.7,0.3]
[1643731319808,21.58,2776.8,2776.5,0.78027226]
[1643731320002,0.50509165,2776.8,2776.5,1.68093226]
[1643731320202,0.5,2776.8,2776.7,0.3]
[1643731321106,0.5,2776.8,2776.7,1.23264826]
[1643731321309,0.69189185,2777.2,2776.7,3.53264826]
[1643731321310,0.01816388,2777.2,2776.7,3.53264826]
[1643731321505,4.07808904,2777.8,2777.1,0.01227497]